fUSD/lending_fUSD_20260309
["ID","MTS","AMOUNT","RATE_DAILY","PERIOD"]
[408031459,1773055840529,-1500.0,0.00018999,2]
[408031460,1773055840538,-8000.0,0.00018999,2]
[408031461,1773055840547,-1500.0,0.00018999,2]
[408031462,1773055840556,-1500.0,0.00018999,2]
[408031463,1773055840565,-1500.0,0.00018999,2]
[408031464,1773055840574,-1500.0,0.00018999,2]
[408031465,1773055840584,-1500.0,0.00018999,2]
[408031466,1773055840593,-1500.0,0.00018999,2]
[408031467,1773055840602,-3000.0,0.00018999,2]
[408031468,1773055840611,-3000.0,0.00018999,2]
[408031469,1773055840620,-3000.0,0.00018999,2]
[408031470,1773055840629,-3000.0,0.00018999,2]
[408031471,1773055840638,-3000.0,0.00018999,2]
[408031472,1773055840647,-3000.0,0.00018999,2]
[408031473,1773055840657,-174.61919141,0.00018999,2]
[408031474,1773055840666,-3000.0,0.00018999,2]
[408031475,1773055840675,-3000.0,0.00018999,2]
[408031476,1773055840684,-3000.0,0.00018999,2]
[408031477,1773055840694,-3000.0,0.00018999,2]
[408031478,1773055840704,-3000.0,0.00018999,2]
[408031479,1773055840713,-1500.0,0.00018999,2]
[408031480,1773055840723,-1500.0,0.00018999,2]
[408031481,1773055840732,-1500.0,0.00018999,2]
[408031482,1773055840742,-1500.0,0.00018999,2]
[408031483,1773055840751,-1500.0,0.00018999,2]
[408031484,1773055840762,-1500.0,0.00018999,2]
[408031485,1773055840771,-1500.0,0.00018999,2]
[408031486,1773055840781,-1500.0,0.00018999,2]
[408031487,1773055840790,-1500.0,0.00018999,2]
[408031488,1773055840798,-1500.0,0.00018999,2]
[408031489,1773055840807,-1500.0,0.00018999,2]
[408031490,1773055840816,-5267.18445,0.00019,30]
[408031491,1773055840825,-2034.20605676,0.00019,2]
[408031492,1773055840835,-3046.74894469,0.0001901,2]
[408031493,1773055840843,-2029.35857449,0.00019029,2]
[408031494,1773055840853,-500.0,0.00019041,2]
[408031495,1773055840863,-1262.33766608,0.00019042,2]
[408031497,1773055840872,-1300.29653446,0.00019085,2]
[408031498,1773055840880,-256.86,0.0001911,2]
[408031499,1773055840889,-1000.0,0.00019121,2]
[408031500,1773055840898,-3046.74894469,0.00019121,2]
[408031501,1773055840907,-351.28,0.00019178,2]
[408031502,1773055840916,-1000.0,0.00019178,2]
[408031503,1773055840925,-1262.33766608,0.00019185,2]
[408031504,1773055840934,-709.0,0.00019226,2]
[408031505,1773055840943,-3046.74894469,0.00019233,2]
[408031506,1773055840952,-1300.29653446,0.00019248,2]
[408031507,1773055840962,-1262.33766608,0.00019328,2]
[408031508,1773055840971,-500.0,0.00019338,2]
[408031509,1773055840980,-500.0,0.00019338,2]
[408031510,1773055840990,-3046.74894469,0.00019344,2]
[408031511,1773055840999,-151.0,0.00019355,2]
[408031512,1773055841008,-256.86,0.00019384,2]
[408031513,1773055841017,-709.0,0.00019392,2]
[408031514,1773055841026,-1300.29653446,0.00019411,2]
[408031515,1773055841035,-161.25539473,0.00019425,2]
[408031516,1773055841044,-236.58025834,0.00019429,2]
[408031517,1773055841054,-157.72017223,0.00019443,2]
[408031518,1773055841063,-500.0,0.00019452,7]
[408031519,1773055841072,-500.0,0.00019452,7]
[408031520,1773055841081,-1000.0,0.00019452,2]
[408031521,1773055841090,-3046.74894469,0.00019455,2]
[408031522,1773055841099,-151.0,0.00019463,2]
[408031523,1773055841108,-1262.33766608,0.00019471,2]
[408031524,1773055841118,-1000.0,0.000195,2]
[408031525,1773055841127,-501.15121057,0.00019521,2]
[408031526,1773055841136,-505.41983925,0.00019521,2]
[408031527,1773055841146,-1000.0,0.00019521,2]
[408031528,1773055841155,-172.87392778,0.00019538,2]
[408031529,1773055841164,-181.08010149,0.00019547,2]
[408031530,1773055841174,-709.0,0.00019558,2]
[408031531,1773055841183,-3046.74894469,0.00019566,2]
[408031532,1773055841194,-151.0,0.0001957,2]
[408031533,1773055841203,-500.0,0.00019599,2]
[408031534,1773055841212,-500.0,0.00019599,2]
[408031535,1773055841221,-500.0,0.00019599,2]
[408031536,1773055841231,-500.0,0.00019599,2]
[408031537,1773055841240,-500.0,0.00019599,2]
[408031538,1773055841250,-152.0,0.00019605,5]
[408031539,1773055841259,-1262.33766608,0.00019614,2]
[408031540,1773055841268,-500.0,0.00019618,2]
[408031541,1773055841277,-500.0,0.00019618,2]
[408031542,1773055841287,-506.0,0.00019618,2]
[408031543,1773055841296,-500.0,0.00019618,2]
[408031544,1773055841305,-150.0,0.00019618,2]
[408031545,1773055841314,-150.0,0.00019618,2]
[408031546,1773055841323,-500.0,0.00019618,2]
[408031547,1773055841331,-901.0,0.00019618,2]
[408031548,1773055841341,-154.50653522,0.00019618,2]
[408031549,1773055841350,-150.0,0.00019618,2]
[408031550,1773055841359,-500.0,0.00019618,2]
[408031551,1773055841368,-150.0,0.00019618,2]
[408031552,1773055841378,-500.0,0.00019618,2]
[408031553,1773055841387,-155.77130971,0.00019618,2]
[408031554,1773055841401,-150.0,0.00019618,2]
[408031555,1773055841410,-500.0,0.00019618,2]
[408031556,1773055841419,-214.75538024,0.00019618,2]
[408031557,1773055841428,-150.0,0.00019618,2]
[408031558,1773055841440,-150.0,0.00019618,2]
[408031559,1773055841449,-150.0,0.00019618,2]
[408031560,1773055841458,-150.0,0.00019618,2]
[408031561,1773055841468,-500.0,0.00019618,2]
[408031562,1773055841477,-150.0,0.00019618,2]
[408031563,1773055841486,-801.0,0.00019618,2]
[408031564,1773055841495,-1436.0,0.00019618,2]
[408031565,1773055841504,-150.0,0.00019618,2]
[408031566,1773055841513,-500.0,0.00019618,2]
[408031567,1773055841523,-500.0,0.00019618,2]
[408031568,1773055841532,-211.02563779,0.00019618,2]
[408031569,1773055841541,-150.0,0.00019618,2]
[408031570,1773055841550,-500.0,0.00019618,2]
[408031571,1773055841559,-150.0,0.00019618,2]
[408031572,1773055841568,-150.0,0.00019618,2]
[408031573,1773055841577,-150.0,0.00019618,2]
[408031574,1773055841587,-150.0,0.00019618,2]
[408031575,1773055841596,-500.0,0.00019618,2]
[408031576,1773055841605,-150.0,0.00019618,2]
[408031577,1773055841614,-150.0,0.00019618,2]
[408031578,1773055841623,-500.0,0.00019618,2]
[408031579,1773055841632,-150.0,0.00019618,2]
[408031580,1773055841642,-150.0,0.00019618,2]
[408031581,1773055841651,-500.0,0.00019618,2]
[408031582,1773055841660,-442.0,0.00019618,2]
[408031583,1773055841669,-286.68,0.00019623,2]
[408031584,1773055841679,-165.17,0.00019633,2]
[408031585,1773055841688,-256.8742566,0.00019658,2]
[408031586,1773055841697,-1500.0,0.00019668,2]
[408031587,1773055841707,-764.0,0.0001967,5]
[408031588,1773055841716,-500.0,0.00019672,2]
[408031589,1773055841725,-500.0,0.00019673,2]
[408031590,1773055841734,-500.0,0.00019673,2]
[408031591,1773055841743,-506.0,0.00019673,2]
[408031592,1773055841751,-500.0,0.00019673,2]
[408031593,1773055841761,-150.0,0.00019673,2]
[408031594,1773055841770,-150.0,0.00019673,2]
[408031595,1773055841778,-500.0,0.00019673,2]
[408031596,1773055841787,-901.0,0.00019673,2]
[408031597,1773055841797,-277.09096331,0.00019673,2]
[408031598,1773055841807,-500.0,0.00019673,2]
[408031599,1773055841816,-150.0,0.00019673,2]
[408031600,1773055841825,-500.0,0.00019673,2]
[408031601,1773055841834,-285.50154825,0.00019673,2]
[408031602,1773055841843,-500.0,0.00019673,2]
[408031603,1773055841851,-150.0,0.00019673,2]
[408031604,1773055841861,-179.08949688,0.00019673,2]
[408031605,1773055841870,-500.0,0.00019673,2]
[408031606,1773055841879,-150.0,0.00019673,2]
[408031607,1773055841888,-801.0,0.00019673,2]
[408031608,1773055841897,-1436.0,0.00019673,2]
[408031609,1773055841906,-150.0,0.00019673,2]
[408031610,1773055841915,-500.0,0.00019673,2]
[408031611,1773055841924,-500.0,0.00019673,2]
[408031612,1773055841933,-200.0,0.00019673,2]
[408031613,1773055841942,-392.0,0.00019673,2]
[408031614,1773055841952,-150.0,0.00019673,2]
[408031615,1773055841960,-500.0,0.00019673,2]
[408031616,1773055841969,-150.0,0.00019673,2]
[408031617,1773055841979,-500.0,0.00019673,2]
[408031618,1773055841988,-150.0,0.00019673,2]
[408031619,1773055841997,-150.0,0.00019673,2]
[408031620,1773055842006,-500.0,0.00019673,2]
[408031621,1773055842015,-442.0,0.00019673,2]
[408031622,1773055842025,-485.07925419,0.00019673,2]
[408031623,1773055842033,-3046.74894469,0.00019678,2]
[408031624,1773055842042,-151.0,0.00019678,2]
[408031625,1773055842051,-2000.0,0.000197,2]
[408031626,1773055842060,-708.16830237,0.000197,2]
[408031627,1773055842069,-153.42726249,0.00019719,2]
[408031628,1773055842078,-1000.0,0.00019726,2]
[408031629,1773055842087,-305.0,0.00019726,2]
[408031630,1773055842096,-500.0,0.00019728,2]
[408031631,1773055842105,-500.0,0.00019728,2]
[408031632,1773055842114,-506.0,0.00019728,2]
[408031633,1773055842123,-500.0,0.00019728,2]
[408031634,1773055842133,-150.0,0.00019728,2]
[408031635,1773055842142,-200.0,0.00019728,2]
[408031636,1773055842151,-500.0,0.00019728,2]
[408031637,1773055842160,-901.0,0.00019728,2]
[408031638,1773055842169,-200.0,0.00019728,2]
[408031639,1773055842178,-150.0,0.00019728,2]
[408031640,1773055842187,-500.0,0.00019728,2]
[408031641,1773055842196,-476.29568284,0.00019728,2]
[408031642,1773055842205,-408.71326845,0.00019728,2]
[408031643,1773055842214,-150.0,0.00019728,2]
[408031644,1773055842223,-801.0,0.00019728,2]
[408031645,1773055842232,-1436.0,0.00019728,2]
[408031646,1773055842241,-500.0,0.00019728,2]
[408031647,1773055842250,-200.0,0.00019728,2]
[408031648,1773055842259,-201.70358089,0.00019728,2]
[408031649,1773055842268,-150.0,0.00019728,2]
[408031650,1773055842278,-500.0,0.00019728,2]
[408031651,1773055842287,-150.0,0.00019728,2]
[408031652,1773055842296,-500.0,0.00019728,2]
[408031653,1773055842305,-210.57620522,0.00019728,2]
[408031654,1773055842314,-150.0,0.00019728,2]
[408031655,1773055842323,-500.0,0.00019728,2]
[408031656,1773055842332,-442.0,0.00019728,2]
[408031657,1773055842341,-1262.33766608,0.00019757,2]
[408031658,1773055842350,-500.0,0.00019781,2]
[408031659,1773055842359,-500.0,0.00019781,2]
[408031660,1773055842368,-500.0,0.00019782,2]
[408031661,1773055842377,-150.0,0.00019782,2]
[408031662,1773055842386,-506.0,0.00019782,2]
[408031663,1773055842398,-500.0,0.00019782,2]
[408031664,1773055842408,-150.0,0.00019782,2]
[408031665,1773055842417,-450.19393605,0.00019782,2]
[408031666,1773055842426,-901.0,0.00019782,2]
[408031667,1773055842435,-250.0,0.00019782,2]
[408031668,1773055842446,-500.0,0.00019782,2]
[408031669,1773055842455,-164.10663282,0.00019782,2]
[408031670,1773055842465,-801.0,0.00019782,2]
[408031671,1773055842477,-1436.0,0.00019782,2]
[408031672,1773055842486,-150.0,0.00019782,2]
[408031673,1773055842496,-500.0,0.00019782,2]
[408031674,1773055842505,-150.0,0.00019782,2]
[408031675,1773055842514,-500.0,0.00019782,2]
[408031676,1773055842523,-150.0,0.00019782,2]
[408031677,1773055842533,-500.0,0.00019782,2]
[408031678,1773055842542,-442.0,0.00019782,2]
[408031679,1773055842551,-151.0,0.00019785,2]
[408031680,1773055842560,-3046.74894469,0.00019789,2]
[408031681,1773055842569,-1600.0,0.00019795,2]
[408031682,1773055842578,-920.26835,0.000198,2]
[408031683,1773055842587,-920.26835,0.000198,2]
[408031684,1773055842596,-150.0,0.000198,30]
[408031685,1773055842606,-2000.0,0.000198,2]
[408031686,1773055842615,-378.79,0.0001981,2]
[408031687,1773055842624,-6221.40746089,0.0001981,2]
[408031688,1773055842835,-709.0,0.00019815,2]
[408031689,1773055842845,-4358.295,0.00019837,2]
[408031690,1773055842854,-500.0,0.00019837,2]
[408031691,1773055842863,-506.0,0.00019837,2]
[408031692,1773055842872,-500.0,0.00019837,2]
[408031693,1773055842881,-251.82767376,0.00019837,2]
[408031694,1773055842890,-901.0,0.00019837,2]
[408031695,1773055842899,-500.0,0.00019837,2]
[408031696,1773055842908,-801.0,0.00019837,2]
[408031697,1773055842917,-1436.0,0.00019837,2]
[408031698,1773055842926,-150.0,0.00019837,2]
[408031699,1773055842935,-500.0,0.00019837,2]
[408031700,1773055842944,-150.0,0.00019837,2]
[408031701,1773055842954,-500.0,0.00019837,2]
[408031702,1773055842964,-500.0,0.00019837,2]
[408031703,1773055842974,-442.0,0.00019837,2]
[408031704,1773055842983,-150.0,0.00019837,2]
[408031705,1773055842993,-183.778,0.0001984,2]
[408031706,1773055843003,-200.0,0.0001984,2]
[408031707,1773055843012,-250.0,0.00019844,2]
[408031709,1773055843021,-500.0,0.00019873,2]
[408031710,1773055843031,-267.0,0.00019874,2]
[408031711,1773055843039,-250.0,0.00019874,3]
[408031712,1773055843049,-25000.0,0.00019882,3]
[408031713,1773055843058,-8911.7834,0.0001989,2]
[408031714,1773055843066,-25000.0,0.00019891,3]
[408031715,1773055843075,-500.0,0.00019892,2]
[408031717,1773055843084,-506.0,0.00019892,2]
[408031719,1773055843093,-500.0,0.00019892,2]
[408031721,1773055843103,-901.0,0.00019892,2]
[408031723,1773055843112,-500.0,0.00019892,2]
[408031724,1773055843121,-801.0,0.00019892,2]
[408031725,1773055843131,-1436.0,0.00019892,2]
[408031726,1773055843142,-250.0,0.00019892,2]
[408031727,1773055843153,-500.0,0.00019892,2]
[408031728,1773055843163,-250.0,0.00019892,2]
[408031729,1773055843175,-500.0,0.00019892,2]
[408031730,1773055843187,-500.0,0.00019892,2]
[408031731,1773055843207,-442.0,0.00019892,2]
[408031732,1773055843218,-250.0,0.00019892,2]
[408031733,1773055843228,-184.22758356,0.00019892,2]
[408031734,1773055843238,-151.0,0.00019893,2]
[408031735,1773055843248,-220.66738088,0.00019899,2]
[408031736,1773055843258,-220.66738087,0.000199,2]
[408031737,1773055843269,-1066.73625963,0.000199,2]
[408031738,1773055843282,-2000.0,0.000199,2]
[408031739,1773055843291,-25000.0,0.000199,3]
[408031740,1773055843301,-250.0,0.000199,3]
[408031741,1773055843311,-3202.2795,0.000199,2]
[408031742,1773055843320,-25000.0,0.000199,3]
[408031743,1773055843330,-4834.85672202,0.000199,2]
[408031744,1773055843340,-3046.74894469,0.000199,2]
[408031745,1773055843350,-8531.31265296,0.000199,2]
[408031746,1773055843359,-10045.16607364,0.000199,2]
[408031747,1773055843369,-1262.33766608,0.000199,2]
[408031748,1773055843379,-2733.0,0.000199,2]
[408031749,1773055843391,-487.0,0.000199,2]
[408031750,1773055843405,-487.0,0.000199,2]
[408031751,1773055843416,-487.0,0.000199,2]
[408031752,1773055843425,-487.0,0.000199,2]
[408031753,1773055843435,-487.0,0.000199,2]
[408031754,1773055843448,-487.0,0.000199,2]
[408031755,1773055843458,-487.0,0.000199,2]
[408031756,1773055843470,-487.0,0.000199,2]
[408031757,1773055843483,-570.86,0.000199,2]
[408031758,1773055843493,-2841.37,0.00019945,2]
[408031759,1773055843503,-3329.69,0.00019945,2]
[408031760,1773055843514,-250.0,0.00019946,3]
[408031762,1773055843525,-500.0,0.00019947,2]
[408031763,1773055843534,-506.0,0.00019947,2]
[408031764,1773055843544,-500.0,0.00019947,2]
[408031765,1773055843553,-901.0,0.00019947,2]
[408031766,1773055843563,-500.0,0.00019947,2]
[408031767,1773055843575,-801.0,0.00019947,2]
[408031768,1773055843585,-1436.0,0.00019947,2]
[408031769,1773055843594,-500.0,0.00019947,2]
[408031770,1773055843604,-500.0,0.00019947,2]
[408031771,1773055843613,-500.0,0.00019947,2]
[408031772,1773055843624,-442.0,0.00019947,2]
[408031773,1773055843633,-676.749,0.00019947,2]
[408031774,1773055843643,-323.77109867,0.00019973,2]
[408031775,1773055843653,-500.0,0.00019973,2]
[408031776,1773055843664,-150.0,0.00019973,2]
[408031777,1773055843673,-150.0,0.00019973,2]
[408031778,1773055843684,-3664.0,0.00019973,2]
[408031779,1773055843694,-250.0,0.0001998,3]
[408031780,1773055843705,-150.0,0.0001999,2]
[408031781,1773055843715,-1279.0,0.0001999,2]
[408031782,1773055843725,-415.94602726,0.0001999,2]
[408031784,1773055843735,-1213.0,0.0001999,2]
[408031786,1773055843744,-922.0,0.0001999,2]
[408031787,1773055843754,-151.0,0.0001999,2]
[408031788,1773055843763,-619.0,0.0001999,2]
[408031789,1773055843774,-151.0,0.0001999,2]
[408031790,1773055843784,-151.0,0.0001999,2]
[408031791,1773055843795,-3505.0,0.0001999,2]
[408031792,1773055843804,-1042.0,0.0001999,2]
[408031793,1773055843814,-21864.8468622,0.00019999,2]
[408031794,1773055843823,-7565.8473193,0.00019999,2]
[408031795,1773055843832,-155.509,0.00019999,2]
[408031796,1773055843841,-113200.9479484,0.00019999,2]
[408031797,1773055843851,-2656.4499833,0.00019999,2]
[408031798,1773055843859,-500.0,0.00019999,2]
[408031799,1773055843868,-500.0,0.00019999,2]
[408031800,1773055843878,-500.0,0.00019999,2]
[408031801,1773055843887,-500.0,0.00019999,2]
[408031802,1773055843896,-500.0,0.00019999,2]
[408031803,1773055843905,-500.0,0.00019999,2]
[408031804,1773055843914,-500.0,0.00019999,2]
[408031805,1773055843924,-500.0,0.00019999,2]
[408031806,1773055843934,-500.0,0.00019999,2]
[408031807,1773055843944,-500.0,0.00019999,2]
[408031808,1773055843953,-504.66308381,0.00019999,2]
[408031809,1773055843963,-500.0,0.00019999,2]
[408031810,1773055843973,-500.0,0.00019999,2]
[408031811,1773055843983,-18534.4807785,0.00019999,2]
[408031812,1773055843993,-390.03191477,0.00019999,2]
[408031813,1773055844002,-11248.8502103,0.00019999,2]
[408031814,1773055844012,-151.0,0.00019999,2]
[408031815,1773055844021,-2628.3832433,0.00019999,2]
[408031816,1773055844030,-151.0,0.00019999,2]
[408031817,1773055844040,-151.0,0.00019999,2]
[408031818,1773055844050,-151.0,0.00019999,2]
[408031819,1773055844063,-151.0,0.00019999,2]
[408031820,1773055844073,-151.0,0.00019999,2]
[408031821,1773055844082,-151.0,0.00019999,2]
[408031822,1773055844091,-233.667272,0.00019999,2]
[408031823,1773055844100,-3000.0,0.00019999,2]
[408031824,1773055844110,-151.0,0.00019999,2]
[408031825,1773055844120,-151.0,0.00019999,2]
[408031826,1773055844131,-528.3101508,0.00019999,2]
[408031827,1773055844141,-500.0,0.00019999,2]
[408031828,1773055844150,-500.0,0.00019999,2]
[408031829,1773055844159,-500.0,0.00019999,2]
[408031830,1773055844169,-530.42631764,0.00019999,2]
[408031831,1773055844179,-500.0,0.00019999,2]
[408031832,1773055844188,-439.49768677,0.00019999,2]
[408031833,1773055844198,-170.17616328,0.00019999,2]
[408031834,1773055844207,-551.0100217,0.00019999,2]
[408031835,1773055844216,-160.53387614,0.00019999,2]
[408031836,1773055844226,-2254.0,0.0002,2]
[408031837,1773055844234,-407985.9867348,0.0002,2]
[408031838,1773055844272,-1300.29653446,0.00019574,2]
[408031839,1773055844281,-8699.88016151,0.0002,2]
[408031840,1773055844292,-34912.14841398,0.0002,2]
[408031841,1773055844508,-974.74442038,0.000199,2]
[408031842,1773055844520,-113.92331291,0.000199,2]
[408031843,1773055844530,-220.66738087,0.000199,2]
[408031844,1773055844539,-67165.40930622,0.0002,2]
[408031845,1773055845481,-14247.76230673,0.0002,2]
[408031846,1773055845512,-150.0,0.00019574,2]
[408031847,1773055845521,-714.17461061,0.0002,2]
[408031848,1773055845532,-337.42,0.0002,2]
[408031849,1773055845544,-10560.53160195,0.0002,2]
[408031850,1773055845990,-463.4000001,0.00019338,2]
[408031851,1773055846000,-1300.29653446,0.00019737,2]
[408031852,1773055846009,-10320.01576544,0.0002,2]
[408031853,1773055846257,-138925.66712234,0.0002,2]
[408031856,1773056336349,5000.01,0.00016896,2]
[408031857,1773056336369,4999.99,0.00016896,2]
[408031858,1773056348369,0.02,0.00016896,2]
[408031859,1773056348392,5000.01,0.00016896,2]
[408031860,1773056348414,1771.74,0.00016896,2]
[408031862,1773056547462,270.82600181,0.00015,30]
[408031863,1773056549652,500.0,0.00015,30]
[408031864,1773056560049,2000.01,0.00016896,2]
[408031865,1773056892986,1352.07,0.00015664,2]
[408031904,1773057032704,-513.0,0.00017,2]
[408031905,1773057032713,-505.0,0.00017,2]
[408031906,1773057032725,-166.66,0.00017606,2]
[408031907,1773057033015,-166.66,0.00017976,2]
[408031908,1773057033024,-166.66,0.00018347,2]
[408031909,1773057033035,-500.0,0.00018356,7]
[408031910,1773057033045,-500.0,0.00018356,7]
[408031911,1773057033054,-500.0,0.00018356,7]
[408031912,1773057033063,-1200.0,0.00018399,2]
[408031913,1773057033072,-2973.69,0.000184,2]
[408031914,1773057033082,-163.0,0.000184,2]
[408031915,1773057033091,-1330.0,0.000184,2]
[408031916,1773057033100,-847.0,0.000184,2]
[408031917,1773057033109,-150.0,0.00018423,2]
[408031918,1773057033118,-381.88,0.0001845,2]
[408031919,1773057033127,-850.0,0.00018572,2]
[408031920,1773057033136,-500.0,0.00018573,2]
[408031921,1773057033145,-500.0,0.00018573,2]
[408031922,1773057033155,-500.0,0.00018573,2]
[408031923,1773057033163,-500.0,0.00018573,2]
[408031924,1773057033173,-500.0,0.00018573,2]
[408031925,1773057033182,-500.0,0.00018573,2]
[408031926,1773057033191,-500.0,0.00018573,2]
[408031927,1773057033201,-500.0,0.00018573,2]
[408031928,1773057033210,-500.0,0.00018573,2]
[408031929,1773057033220,-500.0,0.00018573,2]
[408031930,1773057033229,-500.0,0.00018573,2]
[408031931,1773057033238,-866.01,0.00018623,2]
[408031932,1773057033248,-150.99,0.00018623,2]
[408031933,1773057033257,-500.0,0.0001863,2]
[408031934,1773057033266,-1500.0,0.00018645,2]
[408031935,1773057033276,-166.66,0.00018718,2]
[408031936,1773057033285,-847.0,0.0001872,2]
[408031937,1773057033294,-197.0,0.0001872,2]
[408031938,1773057033303,-299.99,0.0001872,4]
[408031939,1773057033312,-2046.53591053,0.0001872,2]
[408031940,1773057033325,-6113.40408947,0.0001872,2]
[408031941,1773057033334,-381.88,0.00018911,2]
[408031942,1773057033343,-310.41600535,0.00018991,2]
[408031943,1773057033352,-8000.0,0.00018999,2]
[408031944,1773057033361,-500.0,0.00018999,2]
[408031945,1773057033370,-1428.38747117,0.00018999,2]
[408031946,1773057033379,-1767.77451033,0.00018999,2]
[408031947,1773057033388,-250.0,0.00018999,2]
[408031948,1773057033398,-250.0,0.00018999,2]
[408031949,1773057033407,-1500.0,0.00018999,2]
[408031950,1773057033416,-500.0,0.00018999,2]
[408031951,1773057033426,-500.0,0.00018999,2]
[408031952,1773057033436,-500.0,0.00018999,2]
[408031953,1773057033445,-500.0,0.00018999,2]
[408031954,1773057033455,-500.0,0.00018999,2]
[408031955,1773057033465,-500.0,0.00018999,2]
[408031956,1773057033475,-500.0,0.00018999,2]
[408031957,1773057033484,-500.0,0.00018999,2]
[408031958,1773057033494,-250.0,0.00018999,2]
[408031959,1773057033503,-2005.00000002,0.00018999,2]
[408031960,1773057033513,-250.0,0.00018999,2]
[408031961,1773057033523,-250.0,0.00018999,2]
[408031962,1773057033533,-250.0,0.00018999,2]
[408031963,1773057033541,-578.20924308,0.00018999,2]
[408031964,1773057033550,-250.0,0.00018999,2]
[408031965,1773057033559,-7097.77858251,0.00018999,2]
[408031966,1773057033568,-250.0,0.00018999,2]
[408031967,1773057033577,-250.0,0.00018999,2]
[408031968,1773057033586,-250.0,0.00018999,2]
[408031969,1773057033594,-250.0,0.00018999,2]
[408031970,1773057033603,-250.0,0.00018999,2]
[408031971,1773057033613,-250.0,0.00018999,2]
[408031972,1773057033622,-200.0,0.00018999,2]
[408031973,1773057033631,-174.61919141,0.00018999,2]
[408031974,1773057033640,-1500.0,0.00018999,2]
[408031975,1773057033650,-1500.0,0.00018999,2]
[408031976,1773057033659,-1500.0,0.00018999,2]
[408031977,1773057033667,-264.8357459,0.00018999,2]
[408031978,1773057033677,-1500.0,0.00018999,2]
[408031979,1773057033686,-596.89805535,0.00018999,2]
[408031980,1773057033696,-151.0,0.00018999,2]
[408031981,1773057033706,-1500.0,0.00018999,2]
[408031982,1773057033715,-1500.0,0.00018999,2]
[408031983,1773057033724,-1500.0,0.00018999,2]
[408031984,1773057033735,-1500.0,0.00018999,2]
[408031985,1773057033745,-1500.0,0.00018999,2]
[408031986,1773057033754,-1500.0,0.00018999,2]
[408031987,1773057033763,-262.90206542,0.00018999,2]
[408031988,1773057033772,-575.90742508,0.00018999,2]
[408031989,1773057033782,-290.26104003,0.00018999,2]
[408031990,1773057033792,-2119.0,0.00019,2]
[408031991,1773057033801,-810.449072,0.00019,2]
[408031992,1773057033811,-513.0,0.00019032,3]
[408031993,1773057033822,-2806.0,0.0001904,2]
[408031994,1773057033831,-151.0,0.00019054,2]
[408031995,1773057033840,-500.0,0.00019083,2]
[408031996,1773057033849,-166.66,0.00019088,2]
[408031997,1773057033858,-151.0,0.00019109,2]
[408031998,1773057033869,-151.0,0.00019119,2]
[408031999,1773057033879,-600.0,0.00019136,2]
[408032000,1773057033888,-381.27781011,0.00019155,2]
[408032001,1773057033898,-1000.0,0.00019178,2]
[408032002,1773057033908,-2000.0,0.000192,2]
[408032003,1773057033917,-151.0,0.00019229,2]
[408032004,1773057033925,-500.0,0.00019338,2]
[408032005,1773057033935,-151.0,0.00019339,2]
[408032006,1773057033944,-381.88,0.00019372,2]
[408032007,1773057033954,-170.06448864,0.00019417,2]
[408032008,1773057033964,-161.77924979,0.00019425,2]